[Event "Czech Open GM 2020"]
[Site "Pardubice"]
[Date "2020.09.21"]
[Round "1.4"]
[White "Noe, Christopher"]
[Black "Narr, Kevin"]
[Result "1-0"]
[ECO "D46"]
[WhiteElo "2519"]
[BlackElo "2119"]
[Annotator "RC"]
[PlyCount "61"]
[EventDate "2020.09.21"]
[EventCountry "CZE"]
[SourceTitle "playchess.com"]
[Source "ChessBase"]
[SourceQuality "1"]
[TimeControl "40/5400+30:1800+30"]

1. c4 {[%emt 0:00:00]} c6 {[%emt 0:02:22]} 2. d4 {[%emt 0:00:30]} d5 {[%emt 0:00:05]} 3. e3 {[%emt 0:00:06]} Nf6 {[%emt 0:00:22]} 4. Nc3 {[%emt 0:00:14]} e6 {[%emt 0:00:13]} 5. Nf3 {[%emt 0:00:06]} Nbd7 {[%emt 0:00:27]} 6. Qc2 {[%emt 0:00:38]} Bd6 {[%emt 0:00:31]} 7. Bd3 {[%emt 0:01:16]} dxc4 {[%emt 0:00:27]} 8. Bxc4 {[%emt 0:00:06]} b5 {[%emt 0:00:32]} 9. Be2 {[%emt 0:01:29]} O-O {[%emt 0:00:42]} 10. O-O {[%emt 0:03:06]} Bb7 {[%emt 0:00:16]} 11. e4 {[%emt 0:01:16]} e5 {[%emt 0:00:35]} 12. Bg5 {[%emt 0:15:43]} a6 13. Rad1 {[%emt 0:00:00]} Qc7 {[%emt 0:19:38]} 14. dxe5 {[%emt 0:00:00]} Nxe5 {[%emt 0:00:06]} 15. Nxe5 {[%emt 0:09:32]} Bxe5 {[%emt 0:00:04]} 16. f4 {[%emt 0:00:11]} Bd6 {[%emt 0:02:58]} 17. e5 {[%emt 0:04:37]} Bc5+ {[%emt 0:00:20]} 18. Kh1 {[%emt 0:00:09]} Nd5 {[%emt 0:01:55]} 19. Nxd5 {[%emt 0:01:47]} cxd5 {[%emt 0:00:03]} 20. Rc1 {[%emt 0:00:47]} Rac8 {[%emt 0:03:39]} 21. Bg4 {[%emt 0:00:17]} Qb8 {[%emt 0:02:20]} 22. Bxc8 {[%emt 0:04:00]} Rxc8 {[%emt 0:00:02]} 23. Qe2 {[%emt 0:03:39]} h6 {[%emt 0:05:39]} 24. Bh4 {[%emt 0:10:51]} d4 {[%emt 0:01:25]} 25. e6 {[%emt 0:00:05]} f5 {[%emt 0:00:59]} 26. e7 {[%emt 0:05:31]} Be4 {[%emt 0:17:05]} 27. e8=Q+ {[%emt 0:01:31]} Rxe8 {[%emt 0:00:03]} 28. Rxc5 {[%emt 0:00:08]} Qb6 {[%emt 0:00:42]} 29. Rfc1 {[%emt 0:01:41]} d3 {[%emt 0:00:16]} 30. Qd2 {[%emt 0:00:34]} Kh7 {[%emt 0:01:06]} 31. Re5 {[%emt 0:00:19]} 1-0

[Event "Czech Open GM 2020"]
[Site "Pardubice"]
[Date "2020.09.21"]
[Round "1.18"]
[White "Jurcik, Marian"]
[Black "Sielicki, Tomasz"]
[Result "1-0"]
[ECO "C63"]
[WhiteElo "2426"]
[BlackElo "2026"]
[Annotator "ChessBase"]
[PlyCount "81"]
[EventDate "2020.09.21"]
[EventCountry "CZE"]
[SourceTitle "playchess.com"]
[Source "ChessBase"]
[SourceQuality "1"]
[TimeControl "40/5400+30:1800+30"]

1. e4 {[%emt 0:32:36]} e5 {[%emt 0:00:16]} 2. Nf3 {[%emt 0:00:36]} Nc6 {[%emt 0:00:17]} 3. Bb5 {[%emt 0:00:50]} f5 {[%emt 0:00:24]} 4. Nc3 {[%emt 0:01:17]} fxe4 {[%emt 0:02:31]} 5. Nxe4 {[%emt 0:00:22]} d5 {[%emt 0:00:52]} 6. Ng3 {[%emt 0:07:23]} Bg4 {[%emt 0:01:48]} 7. h3 {[%emt 0:01:12]} Bxf3 {[%emt 0:01:48]} 8. Qxf3 {[%emt 0:00:57]} Nf6 {[%emt 0:03:22]} 9. Nh5 {[%emt 0:14:48]} e4 {[%emt 0:08:48]} 10. Qf5 {[%emt 0:01:25]} Kf7 {[%emt 0:13:07]} 11. Nxf6 {[%emt 0:03:41]} gxf6 {[%emt 0:00:28]} 12. Bxc6 {[%emt 0:02:08]} bxc6 {[%emt 0:00:31]} 13. b3 {[%emt 0:01:39]} Bd6 {[%emt 0:17:00]} 14. Bb2 {[%emt 0:01:15]} Qe7 {[%emt 0:03:16]} 15. Qh5+ {[%emt 0:01:17]} Kg7 {[%emt 0:06:35]} 16. O-O {[%emt 0:01:10]} Be5 {[%emt 0:10:19]} 17. d4 {[%emt 0:15:09]} Bd6 {[%emt 0:03:57]} 18. c4 {[%emt 0:04:04]} Qe6 {[%emt 0:05:05]} 19. Bc1 {[%emt 0:11:43]} Rhg8 {[%emt 0:01:00]} 20. c5 {[%emt 0:01:02]} Be7 {[%emt 0:01:31]} 21. Bf4 {[%emt 0:00:15]} Kh8 {[%emt 0:02:14]} 22. Rae1 {[%emt 0:01:04]} Rg7 {[%emt 0:01:30]} 23. f3 {[%emt 0:06:25]} Rag8 {[%emt 0:00:51]} 24. Re2 {[%emt 0:01:23]} Qc8 {[%emt 0:11:17]} 25. fxe4 {[%emt 0:09:41]} dxe4 {[%emt 0:00:14]} 26. Rff2 {[%emt 0:00:27]} Qa6 {[%emt 0:02:06]} 27. Rxe4 {[%emt 0:02:07]} Qd3 {[%emt 0:00:13]} 28. Qe2 {[%emt 0:00:38]} Qb1+ {[%emt 0:00:57]} 29. Kh2 {[%emt 0:03:04]} Bd8 {[%emt 0:00:05]} 30. g3 {[%emt 0:02:00]} Qa1 {[%emt 0:01:17]} 31. Qe3 {[%emt 0:01:29]} Qd1 {[%emt 0:00:30]} 32. Re2 {[%emt 0:00:57]} h6 {[%emt 0:00:58]} 33. Re8 {[%emt 0:01:24]} Kh7 {[%emt 0:01:22]} 34. Qe4+ {[%emt 0:01:47]} f5 {[%emt 0:00:30]} 35. Qxf5+ {[%emt 0:00:52]} Rg6 {[%emt 0:00:01]} 36. R2e7+ {[%emt 0:01:47]} Bxe7 {[%emt 0:00:17]} 37. Rxe7+ {[%emt 0:00:03]} R8g7 {[%emt 0:01:29]} 38. Rxg7+ {[%emt 0:00:11]} Kxg7 {[%emt 0:00:02]} 39. Be5+ {[%emt 0:00:08]} Kh7 {[%emt 0:00:07]} 40. Qf7+ {[%emt 0:00:05]} Rg7 {[%emt 0:00:05]} 41. Qxg7# {[%emt 0:00:12]} 1-0

[Event "Czech Open GM 2020"]
[Site "Pardubice"]
[Date "2020.09.22"]
[Round "2.16"]
[White "Pychova, Nela"]
[Black "Jurcik, Marian"]
[Result "1/2-1/2"]
[ECO "A21"]
[WhiteElo "2159"]
[BlackElo "2426"]
[Annotator "ChessBase"]
[PlyCount "98"]
[EventDate "2020.09.21"]
[EventCountry "CZE"]
[SourceTitle "playchess.com"]
[Source "ChessBase"]
[SourceQuality "1"]
[TimeControl "40/5400+30:1800+30"]

1. c4 {[%emt 0:00:00]} e5 {[%emt 0:00:14]} 2. Nc3 {[%emt 0:00:00]} Bb4 {[%emt 0:01:50]} 3. g3 {[%emt 0:00:19]} Bxc3 {[%emt 0:00:50]} 4. bxc3 {[%emt 0:05:09]} d6 {[%emt 0:00:40]} 5. Bg2 {[%emt 0:00:10]} Nc6 {[%emt 0:00:55]} 6. d3 {[%emt 0:01:10]} f5 {[%emt 0:00:36]} 7. Nf3 {[%emt 0:03:12]} Nf6 {[%emt 0:00:32]} 8. O-O {[%emt 0:03:27]} O-O {[%emt 0:00:35]} 9. Ne1 {[%emt 0:13:00]} Qe8 {[%emt 0:29:27]} 10. Nc2 {[%emt 0:06:10]} Qh5 {[%emt 0:08:01]} 11. Nb4 {[%emt 0:08:45]} Ne7 {[%emt 0:09:05]} 12. e3 {[%emt 0:05:09]} Qxd1 {[%emt 0:04:23]} 13. Rxd1 {[%emt 0:02:33]} e4 {[%emt 0:00:56]} 14. dxe4 {[%emt 0:02:45]} Nxe4 {[%emt 0:01:10]} 15. Bxe4 {[%emt 0:13:33]} fxe4 {[%emt 0:00:06]} 16. Nd5 {[%emt 0:00:09]} Nxd5 {[%emt 0:00:18]} 17. cxd5 {[%emt 0:07:48]} Bg4 {[%emt 0:00:26]} 18. Rd4 {[%emt 0:00:40]} Bf3 {[%emt 0:00:13]} 19. Rc4 {[%emt 0:01:08]} Rf7 {[%emt 0:00:21]} 20. Rb1 {[%emt 0:03:36]} b6 {[%emt 0:00:52]} 21. Rc6 {[%emt 0:04:01]} Re8 {[%emt 0:01:37]} 22. Rb4 {[%emt 0:02:50]} Re5 {[%emt 0:01:08]} 23. Rd4 {[%emt 0:00:09]} Rh5 {[%emt 0:01:47]} 24. Bd2 {[%emt 0:09:43]} Rf6 {[%emt 0:04:17]} 25. h4 {[%emt 0:01:19]} Rfh6 {[%emt 0:01:38]} 26. Kh2 {[%emt 0:01:32]} g5 {[%emt 0:01:57]} 27. Rxc7 {[%emt 0:00:09]} gxh4 {[%emt 0:00:15]} 28. g4 {[%emt 0:00:10]} Rg5 {[%emt 0:03:25]} 29. Rdc4 {[%emt 0:01:51]} Rf6 {[%emt 0:03:23]} 30. Rxa7 {[%emt 0:03:35]} Rf7 {[%emt 0:06:28]} 31. Rc8+ {[%emt 0:00:41]} Kg7 {[%emt 0:00:14]} 32. Rxf7+ {[%emt 0:00:36]} Kxf7 {[%emt 0:00:02]} 33. c4 {[%emt 0:00:32]} Rxg4 {[%emt 0:00:18]} 34. Rc7+ {[%emt 0:00:30]} Kg6 {[%emt 0:02:43]} 35. Bc3 {[%emt 0:00:31]} Rg2+ {[%emt 0:01:59]} 36. Kh3 {[%emt 0:00:15]} Rxf2 {[%emt 0:00:26]} 37. Kxh4 {[%emt 0:00:44]} h5 {[%emt 0:08:06]} 38. Rd7 {[%emt 0:00:34]} Rh2+ {[%emt 0:00:33]} 39. Kg3 {[%emt 0:00:09]} Rg2+ {[%emt 0:03:02]} 40. Kh3 {[%emt 0:00:48]} Rc2 {[%emt 0:03:58]} 41. Rxd6+ {[%emt 0:08:10]} Kf5 {[%emt 0:00:55]} 42. Bd4 {[%emt 0:06:08]} Rc1 {[%emt 0:07:31]} 43. Rd8 {[%emt 0:04:08]} Rh1+ {[%emt 0:00:34]} 44. Kg3 {[%emt 0:00:07]} h4+ {[%emt 0:00:22]} 45. Kf2 {[%emt 0:00:04]} Rh2+ {[%emt 0:00:30]} 46. Kg1 {[%emt 0:02:40]} Rh1+ {[%emt 0:21:27]} 47. Kf2 {[%emt 0:00:06]} Rh2+ {[%emt 0:00:09]} 48. Kg1 {[%emt 0:00:28]} Rh1+ {[%emt 0:02:20]} 49. Kf2 {[%emt 0:00:18]} Rh2+ {[%emt 0:01:01]} 1/2-1/2

[Event "Czech Open GM 2020"]
[Site "Pardubice"]
[Date "2020.09.23"]
[Round "3.3"]
[White "Arkell, Keith C"]
[Black "Van Foreest, Lucas"]
[Result "0-1"]
[ECO "A40"]
[WhiteElo "2429"]
[BlackElo "2531"]
[Annotator "RC"]
[PlyCount "78"]
[EventDate "2020.09.21"]
[EventCountry "CZE"]
[SourceTitle "playchess.com"]
[Source "ChessBase"]
[SourceQuality "1"]
[TimeControl "40/5400+30:1800+30"]

1. d4 {[%emt 0:00:11]} g6 {[%emt 0:00:00]} 2. c4 {[%emt 0:01:09]} Bg7 {[%emt 0:00:00]} 3. Nc3 {[%emt 0:00:05]} c5 {[%emt 0:00:00]} 4. d5 {[%emt 0:02:22]} Bxc3+ {[%emt 0:00:00]} 5. bxc3 {[%emt 0:00:03]} e5 {[%emt 0:00:00]} 6. e4 {[%emt 0:01:24]} d6 {[%emt 0:00:24]} 7. f4 {[%emt 0:02:55]} exf4 {[%emt 0:00:07]} 8. Bxf4 {[%emt 0:00:05]} Qh4+ {[%emt 0:00:03]} 9. g3 {[%emt 0:03:33]} Qe7 {[%emt 0:00:04]} 10. Bd3 {[%emt 0:02:02]} Nf6 {[%emt 0:13:19]} 11. Qe2 {[%emt 0:06:48]} Nbd7 {[%emt 0:01:31]} 12. Nf3 {[%emt 0:01:42]} Ng4 {[%emt 0:00:34]} 13. O-O {[%emt 0:04:44]} O-O {[%emt 0:19:16]} 14. h3 {[%emt 0:18:45]} Nge5 {[%emt 0:00:57]} 15. Kg2 {[%emt 0:02:37]} Nxf3 {[%emt 0:02:04]} 16. Rxf3 {[%emt 0:02:59]} Ne5 {[%emt 0:01:55]} 17. Rf2 {[%emt 0:01:10]} f6 {[%emt 0:00:04]} 18. g4 {[%emt 0:02:46]} Bd7 {[%emt 0:00:05]} 19. Raf1 {[%emt 0:01:21]} Rae8 {[%emt 0:00:23]} 20. Bc2 {[%emt 0:00:48]} b6 {[%emt 0:01:31]} 21. Bg3 {[%emt 0:05:03]} Rf7 {[%emt 0:03:19]} 22. Bh4 {[%emt 0:01:07]} Ref8 {[%emt 0:01:43]} 23. Bb3 {[%emt 0:05:34]} Bc8 {[%emt 0:00:48]} 24. a4 {[%emt 0:01:53]} Kg7 {[%emt 0:01:55]} 25. Bg3 {[%emt 0:06:28]} Qe8 {[%emt 0:00:35]} 26. Qc2 {[%emt 0:06:36]} Qd7 {[%emt 0:04:25]} 27. Bxe5 {[%emt 0:03:06]} fxe5 {[%emt 0:00:05]} 28. Rxf7+ {[%emt 0:00:06]} Rxf7 {[%emt 0:00:02]} 29. Rxf7+ {[%emt 0:00:14]} Qxf7 {[%emt 0:00:05]} 30. Qf2 {[%emt 0:01:20]} Qe7 {[%emt 0:11:17]} 31. Bd1 {[%emt 0:00:08]} h6 {[%emt 0:05:41]} 32. h4 {[%emt 0:00:50]} Bd7 {[%emt 0:01:46]} 33. Kg3 {[%emt 0:09:54]} g5 {[%emt 0:00:58]} 34. h5 {[%emt 0:01:23]} Qe8 {[%emt 0:00:04]} 35. a5 {[%emt 0:05:33]} bxa5 {[%emt 0:00:02]} 36. Qb2 {[%emt 0:00:12]} a4 {[%emt 0:01:54]} 37. Qb7 {[%emt 0:00:30]} Qf7 {[%emt 0:00:03]} 38. Qxa7 {[%emt 0:00:42]} a3 {[%emt 0:00:02]} 39. Be2 {[%emt 0:00:44]} Bxg4 {[%emt 0:00:06]} 0-1

[Event "Czech Open GM 2020"]
[Site "Pardubice"]
[Date "2020.09.23"]
[Round "3.11"]
[White "Vrolijk, Liam"]
[Black "Ludvik, Tomas"]
[Result "1-0"]
[ECO "D12"]
[WhiteElo "2481"]
[BlackElo "2218"]
[Annotator "RC"]
[PlyCount "65"]
[EventDate "2020.09.21"]
[EventCountry "CZE"]
[SourceTitle "playchess.com"]
[Source "ChessBase"]
[SourceQuality "1"]
[TimeControl "40/5400+30:1800+30"]

1. d4 {[%emt 0:00:00]} d5 {[%emt 0:00:00]} 2. c4 {[%emt 0:00:30]} c6 {[%emt 0:00:00]} 3. Nf3 {[%emt 0:00:15]} Nf6 {[%emt 0:00:00]} 4. e3 {[%emt 0:00:07]} Bf5 {[%emt 0:00:58]} 5. Nc3 {[%emt 0:00:08]} e6 {[%emt 0:00:06]} 6. Nh4 {[%emt 0:00:28]} Be4 {[%emt 0:00:16]} 7. f3 {[%emt 0:00:18]} Bg6 {[%emt 0:00:06]} 8. Qb3 {[%emt 0:00:16]} Qc7 {[%emt 0:00:46]} 9. Bd2 {[%emt 0:00:09]} Be7 {[%emt 0:00:24]} 10. g3 {[%emt 0:03:42]} O-O {[%emt 0:04:03]} 11. g4 {[%emt 0:01:20]} dxc4 {[%emt 0:08:21]} 12. Bxc4 {[%emt 0:01:11]} a6 {[%emt 0:00:41]} 13. g5 {[%emt 0:03:50]} Nd5 {[%emt 0:02:51]} 14. Nxg6 {[%emt 0:01:04]} hxg6 {[%emt 0:02:05]} 15. f4 {[%emt 0:00:08]} b5 {[%emt 0:03:05]} 16. Nxd5 {[%emt 0:12:22]} exd5 {[%emt 0:14:00]} 17. Bd3 {[%emt 0:01:56]} Nd7 {[%emt 0:01:12]} 18. h4 {[%emt 0:06:26]} Qd6 {[%emt 0:03:40]} 19. Qd1 {[%emt 0:12:14]} c5 {[%emt 0:02:47]} 20. Qg4 {[%emt 0:10:55]} Rfe8 {[%emt 0:05:06]} 21. Kf2 {[%emt 0:05:31]} Bd8 {[%emt 0:08:00]} 22. h5 {[%emt 0:03:40]} cxd4 {[%emt 0:01:14]} 23. exd4 {[%emt 0:04:08]} Bb6 {[%emt 0:02:17]} 24. hxg6 {[%emt 0:02:09]} fxg6 {[%emt 0:03:25]} 25. Kg2 {[%emt 0:01:35]} Bxd4 {[%emt 0:05:57]} 26. Rae1 {[%emt 0:05:58]} Nc5 {[%emt 0:10:29]} 27. Bb4 {[%emt 0:04:34]} Rxe1 {[%emt 0:06:20]} 28. Rxe1 {[%emt 0:00:07]} Rf8 {[%emt 0:05:54]} 29. f5 {[%emt 0:03:06]} a5 {[%emt 0:03:07]} 30. Re6 {[%emt 0:04:52]} gxf5 {[%emt 0:04:20]} 31. Bxf5 {[%emt 0:02:19]} Qd7 {[%emt 0:00:27]} 32. Bxc5 {[%emt 0:02:05]} Bxc5 {[%emt 0:00:01]} 33. Rf6 {[%emt 0:01:07]} 1-0

[Event "Czech Open GM 2020"]
[Site "Pardubice"]
[Date "2020.09.23"]
[Round "3.13"]
[White "Koziak, Vitali"]
[Black "Siekanski, Janusz"]
[Result "1-0"]
[ECO "A08"]
[WhiteElo "2434"]
[BlackElo "2184"]
[Annotator "RC"]
[PlyCount "53"]
[EventDate "2020.09.21"]
[EventCountry "CZE"]
[SourceTitle "playchess.com"]
[Source "ChessBase"]
[SourceQuality "1"]
[TimeControl "40/5400+30:1800+30"]

1. Nf3 {[%emt 0:00:00]} d5 {[%emt 0:00:00]} 2. g3 {[%emt 0:00:18]} e6 {[%emt 0:00:01]} 3. Bg2 {[%emt 0:00:09]} c5 {[%emt 0:00:11]} 4. O-O {[%emt 0:00:33]} Nc6 {[%emt 0:00:12]} 5. d3 {[%emt 0:02:37]} Bd6 {[%emt 0:00:28]} 6. e4 {[%emt 0:02:22]} Nge7 {[%emt 0:01:23]} 7. Re1 {[%emt 0:07:33]} O-O {[%emt 0:02:52]} 8. c3 {[%emt 0:02:23]} dxe4 {[%emt 0:06:33]} 9. dxe4 {[%emt 0:00:56]} b6 {[%emt 0:02:53]} 10. Na3 {[%emt 0:03:46]} a6 {[%emt 0:16:44]} 11. Nc4 {[%emt 0:09:16]} Bc7 {[%emt 0:00:29]} 12. Qe2 {[%emt 0:04:31]} Bb7 {[%emt 0:02:32]} 13. h4 {[%emt 0:10:34]} b5 {[%emt 0:06:37]} 14. Rd1 {[%emt 0:02:49]} Qb8 {[%emt 0:01:48]} 15. Ne3 {[%emt 0:01:52]} h6 {[%emt 0:06:46]} 16. h5 {[%emt 0:01:17]} Kh8 {[%emt 0:03:54]} 17. Ng4 {[%emt 0:04:34]} f5 {[%emt 0:00:35]} 18. exf5 {[%emt 0:02:30]} exf5 {[%emt 0:05:11]} 19. Ngh2 {[%emt 0:15:56]} f4 {[%emt 0:05:42]} 20. g4 {[%emt 0:07:08]} Qe8 {[%emt 0:02:50]} 21. b3 {[%emt 0:02:22]} Rd8 {[%emt 0:04:08]} 22. Ba3 {[%emt 0:06:33]} Nd5 {[%emt 0:06:33]} 23. Qc2 {[%emt 0:00:26]} b4 {[%emt 0:03:55]} 24. cxb4 {[%emt 0:00:49]} Ncxb4 {[%emt 0:10:37]} 25. Bxb4 {[%emt 0:01:59]} Nxb4 {[%emt 0:01:02]} 26. Qxc5 {[%emt 0:00:16]} Nc6 {[%emt 0:01:48]} 27. Nh4 {[%emt 0:01:12]} 1-0

[Event "Czech Open GM 2020"]
[Site "Pardubice"]
[Date "2020.09.24"]
[Round "4.1"]
[White "Stocek, Jiri"]
[Black "Noe, Christopher"]
[Result "1/2-1/2"]
[ECO "E12"]
[WhiteElo "2595"]
[BlackElo "2519"]
[Annotator "ChessBase"]
[PlyCount "57"]
[EventDate "2020.09.21"]
[EventCountry "CZE"]
[SourceTitle "playchess.com"]
[Source "ChessBase"]
[SourceQuality "1"]
[TimeControl "40/5400+30:1800+30"]

1. d4 {[%emt 0:00:59]} Nf6 {[%emt 0:00:06]} 2. c4 {[%emt 0:00:10]} e6 {[%emt 0:00:05]} 3. Nf3 {[%emt 0:02:45]} b6 {[%emt 0:00:23]} 4. Bf4 {[%emt 0:04:34]} Bb7 {[%emt 0:02:27]} 5. e3 {[%emt 0:01:16]} Bb4+ {[%emt 0:10:45]} 6. Nfd2 {[%emt 0:01:20]} O-O {[%emt 0:02:23]} 7. a3 {[%emt 0:00:52]} Be7 {[%emt 0:00:51]} 8. Nc3 {[%emt 0:00:21]} d5 {[%emt 0:09:13]} 9. Be2 {[%emt 0:03:48]} Nbd7 {[%emt 0:06:45]} 10. cxd5 {[%emt 0:18:00]} Nxd5 {[%emt 0:01:16]} 11. Nxd5 {[%emt 0:00:08]} Bxd5 {[%emt 0:00:12]} 12. O-O {[%emt 0:02:30]} c5 {[%emt 0:02:54]} 13. Rc1 {[%emt 0:09:04]} cxd4 {[%emt 0:11:23]} 14. Bc7 {[%emt 0:02:51]} Qe8 {[%emt 0:00:05]} 15. exd4 {[%emt 0:01:09]} Bd8 {[%emt 0:09:09]} 16. Bd6 {[%emt 0:11:32]} Be7 {[%emt 0:00:11]} 17. Bc7 {[%emt 0:01:30]} Bd8 {[%emt 0:00:17]} 18. Bf4 {[%emt 0:01:54]} Nf6 {[%emt 0:05:02]} 19. Ba6 {[%emt 0:02:35]} Qd7 {[%emt 0:01:07]} 20. Nf3 {[%emt 0:03:28]} Bb7 {[%emt 0:02:24]} 21. Qd3 {[%emt 0:05:28]} Nd5 {[%emt 0:08:22]} 22. Bg3 {[%emt 0:00:22]} Bf6 {[%emt 0:08:42]} 23. Bb5 {[%emt 0:00:27]} Qe7 {[%emt 0:00:05]} 24. Rc2 {[%emt 0:01:26]} Rfc8 {[%emt 0:00:34]} 25. Rfc1 {[%emt 0:00:20]} Qd8 {[%emt 0:02:33]} 26. Ba6 {[%emt 0:04:36]} Qd7 {[%emt 0:05:12]} 27. Bb5 {[%emt 0:01:59]} Qd8 {[%emt 0:01:13]} 28. Ba6 {[%emt 0:00:34]} Qd7 {[%emt 0:00:05]} 29. Bb5 {[%emt 0:01:25]} 1/2-1/2

[Event "Czech Open GM 2020"]
[Site "Pardubice"]
[Date "2020.09.24"]
[Round "4.2"]
[White "Van Foreest, Lucas"]
[Black "Petr, Martin"]
[Result "1-0"]
[ECO "C09"]
[WhiteElo "2531"]
[BlackElo "2484"]
[Annotator "ChessBase"]
[PlyCount "71"]
[EventDate "2020.09.21"]
[EventCountry "CZE"]
[SourceTitle "playchess.com"]
[Source "ChessBase"]
[SourceQuality "1"]
[TimeControl "40/5400+30:1800+30"]

1. e4 {[%emt 0:00:00]} e6 {[%emt 0:13:55]} 2. d4 {[%emt 0:00:00]} d5 {[%emt 0:00:19]} 3. Nd2 {[%emt 0:00:01]} c5 {[%emt 0:00:06]} 4. Ngf3 {[%emt 0:00:51]} Nc6 {[%emt 0:01:36]} 5. exd5 {[%emt 0:01:46]} exd5 {[%emt 0:02:16]} 6. Bb5 {[%emt 0:00:24]} Bd6 {[%emt 0:00:13]} 7. dxc5 {[%emt 0:00:29]} Bxc5 {[%emt 0:00:06]} 8. O-O {[%emt 0:00:11]} Nge7 {[%emt 0:00:05]} 9. Nb3 {[%emt 0:00:04]} Bd6 {[%emt 0:00:05]} 10. Re1 {[%emt 0:00:04]} O-O {[%emt 0:00:41]} 11. h3 {[%emt 0:00:04]} Bf5 {[%emt 0:07:33]} 12. Be3 {[%emt 0:09:17]} a6 {[%emt 0:02:09]} 13. Bd3 {[%emt 0:01:15]} Re8 {[%emt 0:00:50]} 14. c3 {[%emt 0:06:44]} Bg6 {[%emt 0:12:18]} 15. Bxg6 {[%emt 0:17:16]} hxg6 {[%emt 0:01:06]} 16. Qd2 {[%emt 0:02:23]} Qc7 {[%emt 0:06:39]} 17. Re2 {[%emt 0:02:22]} Rad8 {[%emt 0:03:19]} 18. Rae1 {[%emt 0:00:07]} Nf5 {[%emt 0:03:45]} 19. Bg5 {[%emt 0:03:14]} Rxe2 {[%emt 0:01:19]} 20. Rxe2 {[%emt 0:00:08]} Be7 {[%emt 0:01:33]} 21. Bxe7 {[%emt 0:00:18]} Nfxe7 {[%emt 0:04:37]} 22. Nbd4 {[%emt 0:05:40]} Nxd4 {[%emt 0:02:23]} 23. Qxd4 {[%emt 0:00:05]} Nf5 {[%emt 0:02:29]} 24. Qa4 {[%emt 0:00:04]} Nd6 {[%emt 0:03:20]} 25. Re5 {[%emt 0:08:24]} Nb5 {[%emt 0:03:53]} 26. Qh4 {[%emt 0:05:24]} f6 {[%emt 0:03:15]} 27. Re1 {[%emt 0:00:09]} g5 {[%emt 0:00:51]} 28. Qb4 {[%emt 0:00:46]} Kf7 {[%emt 0:05:09]} 29. h4 {[%emt 0:01:38]} gxh4 {[%emt 0:02:12]} 30. Qg4 {[%emt 0:00:03]} Kg8 {[%emt 0:06:45]} 31. Nxh4 {[%emt 0:00:05]} Nd6 {[%emt 0:00:31]} 32. Qh5 {[%emt 0:05:14]} Ne4 {[%emt 0:00:41]} 33. Ng6 {[%emt 0:02:10]} Qb6 {[%emt 0:02:07]} 34. Re2 {[%emt 0:00:31]} Ng3 {[%emt 0:00:39]} 35. Qh8+ {[%emt 0:00:10]} Kf7 {[%emt 0:00:10]} 36. Re7+ {[%emt 0:00:02]} 1-0

[Event "Czech Open GM 2020"]
[Site "Pardubice"]
[Date "2020.09.24"]
[Round "4.4"]
[White "Mendonca, Leon Luke"]
[Black "Szpar, Milosz"]
[Result "1/2-1/2"]
[ECO "E21"]
[WhiteElo "2490"]
[BlackElo "2397"]
[Annotator "ChessBase"]
[PlyCount "54"]
[EventDate "2020.09.21"]
[EventCountry "CZE"]
[SourceTitle "playchess.com"]
[Source "ChessBase"]
[SourceQuality "1"]
[TimeControl "40/5400+30:1800+30"]

1. d4 {[%emt 0:00:00]} Nf6 {[%emt 0:00:00]} 2. c4 {[%emt 0:00:32]} e6 {[%emt 0:00:00]} 3. Nc3 {[%emt 0:00:55]} Bb4 {[%emt 0:00:23]} 4. e3 {[%emt 0:00:17]} O-O {[%emt 0:00:25]} 5. Bd2 {[%emt 0:00:22]} b6 {[%emt 0:02:33]} 6. Nf3 {[%emt 0:01:06]} Bb7 {[%emt 0:00:55]} 7. Bd3 {[%emt 0:00:24]} d6 {[%emt 0:01:21]} 8. O-O {[%emt 0:23:19]} Nbd7 {[%emt 0:05:22]} 9. a3 {[%emt 0:03:07]} Bxc3 {[%emt 0:02:07]} 10. Bxc3 {[%emt 0:00:05]} Ne4 {[%emt 0:08:02]} 11. Be1 {[%emt 0:09:17]} c5 {[%emt 0:17:27]} 12. dxc5 {[%emt 0:21:45]} dxc5 {[%emt 0:06:04]} 13. Qc2 {[%emt 0:02:27]} Ndf6 {[%emt 0:06:53]} 14. Nd2 {[%emt 0:03:23]} Nxd2 {[%emt 0:04:28]} 15. Bxd2 {[%emt 0:00:23]} Be4 {[%emt 0:01:22]} 16. Bxe4 {[%emt 0:02:28]} Nxe4 {[%emt 0:00:07]} 17. Rad1 {[%emt 0:03:34]} Nxd2 {[%emt 0:01:09]} 18. Rxd2 {[%emt 0:00:19]} Qe7 {[%emt 0:07:36]} 19. Rfd1 {[%emt 0:02:48]} Rad8 {[%emt 0:01:07]} 20. h3 {[%emt 0:03:13]} Rxd2 {[%emt 0:05:31]} 21. Qxd2 {[%emt 0:00:09]} f6 {[%emt 0:01:48]} 22. Qd3 {[%emt 0:02:08]} h6 {[%emt 0:05:57]} 23. b3 {[%emt 0:03:41]} f5 {[%emt 0:04:21]} 24. a4 {[%emt 0:10:32]} Kf7 {[%emt 0:03:51]} 25. g3 {[%emt 0:01:19]} Rc8 {[%emt 0:01:43]} 26. Qd7 {[%emt 0:03:38]} Rc7 {[%emt 0:01:29]} 27. Qb5 {[%emt 0:01:35]} Qe8 {[%emt 0:01:42]} 1/2-1/2

[Event "Czech Open GM 2020"]
[Site "Pardubice"]
[Date "2020.09.24"]
[Round "4.7"]
[White "Parvanyan, Ashot"]
[Black "Balinski, Damian"]
[Result "1-0"]
[ECO "A04"]
[WhiteElo "2458"]
[BlackElo "2158"]
[Annotator "ChessBase"]
[PlyCount "57"]
[EventDate "2020.09.21"]
[EventCountry "CZE"]
[SourceTitle "playchess.com"]
[Source "ChessBase"]
[SourceQuality "1"]
[TimeControl "40/5400+30:1800+30"]

1. Nf3 {[%emt 0:00:00]} f5 {[%emt 0:00:00]} 2. d3 {[%emt 0:02:09]} g6 {[%emt 0:00:00]} 3. h4 {[%emt 0:02:40]} Nf6 {[%emt 0:06:41]} 4. e4 {[%emt 0:01:25]} d6 {[%emt 0:01:02]} 5. h5 {[%emt 0:18:47]} Nxh5 {[%emt 0:13:23]} 6. exf5 {[%emt 0:10:15]} Bxf5 {[%emt 0:00:31]} 7. Nh4 {[%emt 0:00:48]} Qc8 {[%emt 0:18:31]} 8. Be2 {[%emt 0:08:54]} Nf6 {[%emt 0:02:17]} 9. Nxf5 {[%emt 0:00:27]} Qxf5 {[%emt 0:02:56]} 10. g4 {[%emt 0:01:11]} Qe6 {[%emt 0:01:02]} 11. g5 {[%emt 0:03:55]} Nfd7 {[%emt 0:00:42]} 12. d4 {[%emt 0:02:08]} Nb6 {[%emt 0:07:02]} 13. c4 {[%emt 0:05:57]} c6 {[%emt 0:01:10]} 14. Nc3 {[%emt 0:03:10]} Bg7 {[%emt 0:10:20]} 15. Be3 {[%emt 0:01:55]} N8d7 {[%emt 0:05:21]} 16. Qb3 {[%emt 0:09:30]} d5 {[%emt 0:10:17]} 17. cxd5 {[%emt 0:00:11]} Nxd5 {[%emt 0:00:14]} 18. O-O-O {[%emt 0:05:52]} O-O-O {[%emt 0:01:51]} 19. Rh4 {[%emt 0:07:24]} Qd6 {[%emt 0:02:29]} 20. Nxd5 {[%emt 0:07:24]} Qxd5 {[%emt 0:00:11]} 21. Bc4 {[%emt 0:01:05]} Qa5 {[%emt 0:00:27]} 22. Be6 {[%emt 0:02:05]} Kb8 {[%emt 0:02:13]} 23. Bxd7 {[%emt 0:01:47]} Rxd7 {[%emt 0:00:04]} 24. Qf7 {[%emt 0:00:15]} Rhd8 {[%emt 0:07:02]} 25. Qxg7 {[%emt 0:00:09]} Qxa2 {[%emt 0:00:05]} 26. Rd2 {[%emt 0:01:26]} Qc4+ {[%emt 0:02:48]} 27. Rc2 {[%emt 0:00:06]} Qf1+ {[%emt 0:00:52]} 28. Kd2 {[%emt 0:00:03]} Rxd4+ {[%emt 0:01:20]} 29. Rxd4 {[%emt 0:00:06]} 1-0